bitfinex/quotes_SOLUSD_20251013
["timestamp","ask_amount","ask_price","bid_price","bid_amount"]
[1760337212917,0.10812613,197.4,197.39,31.67647521]
[1760337213108,0.10812613,197.4,197.39,51.51773673]
[1760337213611,0.10812613,197.4,197.39,41.95710597]
[1760337214307,0.80175592,197.45,197.39,21.15710597]
[1760337214513,0.80175592,197.45,197.43,9.56063076]
[1760337214712,0.7,197.43,197.42,9.56063076]
[1760337214905,0.7,197.43,197.41,9.56063076]
[1760337215112,0.10175592,197.45,197.42,9.56063076]
[1760337215312,0.10175592,197.45,197.43,20.43710597]
[1760337215822,0.09296983,197.46,197.45,31.67647521]
[1760337216001,0.7,197.59,197.54,9.56063076]
[1760337216202,0.7,197.59,197.56,9.56063076]
[1760337216394,2.64517444,197.6,197.56,10.28063076]
[1760337216600,0.7,197.64,197.56,10.28063076]
[1760337216601,0.7,197.64,197.56,47.01885936]
[1760337216811,0.7,197.64,197.57,10.87647521]
[1760337217012,0.7,197.63,197.56,20.8]
[1760337217218,0.7,197.63,197.57,10.87647521]
[1760337217528,0.7,197.62,197.54,20.8]
[1760337217704,0.7,197.61,197.54,20.8]
[1760337217898,9.56063076,197.58,197.46,0.72]
[1760337218089,9.56063076,197.57,197.43,10.87647521]
[1760337218292,10.26063076,197.56,197.43,15.94151863]
[1760337218591,5.06226587,197.54,197.49,9.56063076]
[1760337218920,5.76191217,197.56,197.52,9.56063076]
[1760337219094,0.7,197.55,197.47,10.87647521]
[1760337219410,0.7,197.54,197.5,9.56063076]
[1760337219614,9.56063076,197.58,197.51,9.56063076]
[1760337219918,0.7,197.53,197.49,9.56063076]
[1760337220097,0.7,197.52,197.47,9.56063076]
[1760337220297,0.7,197.51,197.46,9.56063076]
[1760337220504,10.26063076,197.5,197.36,0.72]
[1760337220797,5.06354752,197.49,197.38,10.87647521]
[1760337220988,20.8,197.6,197.48,9.56063076]
[1760337220989,0.7,197.51,197.48,9.56063076]
[1760337221196,9.56063076,197.56,197.49,9.56063076]
[1760337221521,17.71434355,197.58,197.43,0.72]
[1760337221522,10.26063076,197.55,197.43,0.72]
[1760337221694,0.7,197.55,197.45,9.56063076]
[1760337221896,0.7,197.55,197.39,20.8]
[1760337221897,0.7,197.54,197.48,9.56063076]
[1760337222122,3.3462014,197.54,197.49,9.56063076]
[1760337222300,3.3462014,197.54,197.52,9.56063076]
[1760337222503,0.7,197.56,197.5,9.56063076]
[1760337222699,0.7,197.56,197.52,9.56063076]
[1760337222900,0.7,197.56,197.51,9.56063076]
[1760337223101,5.76176065,197.56,197.51,9.56063076]
[1760337223299,0.7,197.55,197.5,9.56063076]
[1760337223608,0.7,197.55,197.4,34.88937902]
[1760337223609,9.56063076,197.51,197.38,0.72]
[1760337223800,0.68,197.54,197.35,0.72]
[1760337223801,9.56063076,197.44,197.35,0.72]
[1760337223993,0.68,197.43,197.34,20.8]
[1760337224234,9.56063076,197.38,197.29,0.72]
[1760337224399,9.56063076,197.38,197.26,0.72]
[1760337224718,10.24063076,197.37,197.26,0.72]
[1760337224903,0.68,197.37,197.32,9.56063076]
[1760337225224,10.24063076,197.36,197.24,6.2]
[1760337225416,10.24063076,197.36,197.3,9.56063076]
[1760337225614,10.24063076,197.36,197.29,9.56063076]
[1760337225817,10.24063076,197.36,197.3,9.56063076]
[1760337226007,10.24063076,197.35,197.29,9.56063076]
[1760337226220,10.24063076,197.34,197.27,9.56063076]
[1760337226531,9.56063076,197.31,197.24,5.48]
[1760337226701,5.74773721,197.33,197.24,5.48]
[1760337226913,0.68,197.32,197.26,9.56063076]
[1760337227104,0.68,197.31,197.25,9.56063076]
[1760337227303,9.56063076,197.29,197.24,5.48]
[1760337227526,0.68,197.28,197.24,5.48]
[1760337227714,0.68,197.27,197.24,5.48]
[1760337228320,0.68,197.26,197.24,5.48]
[1760337228524,0.66,197.25,197.24,5.48]
[1760337228719,15.29033925,197.25,197.24,5.48]
[1760337228920,0.66,197.25,197.24,5.48]
[1760337229328,9.56063076,197.28,197.24,5.48]
[1760337229541,0.66,197.27,197.24,5.48]
[1760337229903,0.66,197.26,197.24,5.48]
[1760337230110,0.66,197.31,197.25,9.56063076]
[1760337230419,9.56063076,197.32,197.25,9.56063076]
[1760337230612,0.66,197.33,197.27,9.56063076]
[1760337230812,15.28832948,197.33,197.24,5.48]
[1760337231012,0.10318142,197.26,197.24,15.04063076]
[1760337231212,0.76318142,197.26,197.24,5.48]
[1760337231406,0.10318142,197.26,197.24,5.48]
[1760337231606,0.10318142,197.26,197.24,15.04063076]
[1760337231814,0.10318142,197.26,197.25,9.56063076]
[1760337232215,0.76318142,197.26,197.24,5.48]
[1760337232423,0.66,197.25,197.24,5.48]
[1760337233131,15.2903949,197.25,197.13,12.68162699]
[1760337233338,9.56063076,197.23,197.17,9.56063076]
[1760337233536,0.66,197.24,197.17,9.56063076]
[1760337233717,0.76318142,197.26,197.19,10.87647521]
[1760337233912,0.76318142,197.26,197.21,9.56063076]
[1760337234225,0.76318142,197.26,197.18,0.69]
[1760337234413,0.10318142,197.26,197.23,9.56063076]
[1760337234931,0.66,197.25,197.18,25.87149272]
[1760337235135,0.66,197.25,197.2,9.56063076]
[1760337235335,0.66,197.25,197.21,9.56063076]
[1760337235640,0.66,197.24,197.21,9.56063076]
[1760337235849,0.66,197.24,197.14,0.69]
[1760337235850,9.56063076,197.22,197.14,0.69]
[1760337236133,0.66,197.21,197.13,9.56063076]
[1760337236331,0.66,197.21,197.15,9.56063076]
[1760337236536,10.22063076,197.21,197.15,9.56063076]
[1760337236829,5.73087107,197.21,197.15,9.56063076]
[1760337237030,9.56063076,197.2,197.1,5.07333797]
[1760337237209,9.56063076,197.18,197.12,9.56063076]
[1760337237411,12.67450468,197.25,197.15,9.56063076]
[1760337237631,5.72996552,197.24,197.17,9.56063076]
[1760337237831,15.29059628,197.24,197.18,9.56063076]
[1760337238034,5.72996552,197.24,197.18,9.56063076]
[1760337238332,9.56063076,197.22,197.15,9.56063076]
[1760337238522,10.22063076,197.21,197.14,9.56063076]
[1760337238730,10.22063076,197.21,197.13,20.8]
[1760337238922,9.56063076,197.19,197.13,9.56063076]
[1760337239113,15.29162467,197.2,197.14,9.56063076]
[1760337239323,10.22063076,197.19,197.12,9.56063076]
[1760337239531,9.56063076,197.17,197.07,10.87647521]
[1760337239736,0.66,197.16,197.07,5.07432867]
[1760337239923,0.66,197.16,197.08,0.69]
[1760337240246,9.56063076,197.15,197.08,9.56063076]
[1760337240408,10.22063076,197.14,197.07,9.56063076]
[1760337240615,9.56063076,197.12,197.06,9.76063076]
[1760337240811,0.66,197.13,197.09,9.56063076]
[1760337241049,0.66,197.16,197.1,9.56063076]
[1760337241227,9.56063076,197.14,197.08,9.56063076]
[1760337241536,9.56063076,197.12,197.06,0.2]
[1760337241736,0.66,197.13,197.09,9.56063076]
[1760337241950,17.75117918,197.17,197.06,0.2]
[1760337242238,10.22063076,197.12,197.06,0.2]
[1760337242534,0.66,197.12,197.07,9.56063076]
[1760337242945,5.73310622,197.12,197.07,9.56063076]
[1760337243130,0.66,197.12,197.07,9.56063076]
[1760337243329,9.56063076,197.13,197.06,0.2]
[1760337243330,0.66,197.14,197.09,9.56063076]
[1760337243512,5.07176548,197.17,197.11,9.56063076]
[1760337243718,5.07176548,197.17,197.12,9.56063076]
[1760337243919,0.66,197.16,197.11,9.56063076]
[1760337244317,0.66,197.16,197.12,9.56063076]
[1760337244519,9.56063076,197.2,197.14,9.56063076]
[1760337244729,9.56063076,197.19,197.09,0.69]
[1760337244927,9.56063076,197.19,197.13,9.56063076]
[1760337244928,5.07150826,197.18,197.13,9.56063076]
[1760337245136,0.66,197.17,197.13,9.56063076]
[1760337245643,5.07150826,197.18,197.13,9.56063076]
[1760337245939,9.56063076,197.14,197.08,9.56063076]
[1760337246136,0.66,197.14,197.09,9.56063076]
[1760337246323,0.66,197.14,197.1,9.56063076]
[1760337246530,9.56063076,197.16,197.1,9.56063076]
[1760337246732,0.66,197.15,197.07,5.76426543]
[1760337246939,5.73228028,197.15,197.1,9.56063076]
[1760337247340,5.73228028,197.15,197.07,5.76425996]
[1760337247644,12.67877066,197.18,197.07,5.76425996]
[1760337247645,0.66,197.17,197.08,0.69]
[1760337247851,9.56063076,197.16,197.1,9.56063076]
[1760337248039,0.66,197.17,197.08,0.69]
[1760337248040,0.66,197.17,197.11,9.56063076]
[1760337248444,0.66,197.17,197.12,9.56063076]
[1760337248951,5.07202272,197.16,197.11,9.56063076]
[1760337249140,5.73202272,197.16,197.11,9.56063076]
[1760337249537,5.07176488,197.18,197.13,9.56063076]
[1760337249856,0.66,197.17,197.12,9.56063076]
[1760337250149,0.66,197.16,197.12,9.56063076]
[1760337250351,0.66,197.16,197.09,5.76381867]
[1760337250352,0.66,197.16,197.11,9.56063076]
[1760337250651,14.63239564,197.18,197.11,9.56063076]
[1760337250850,15.29239564,197.18,197.11,9.56063076]
[1760337251041,0.10003704,197.13,197.12,11.56647521]
[1760337252050,0.10003704,197.13,197.11,5.07318612]
[1760337252248,0.10003704,197.13,197.12,9.56063076]
[1760337252547,0.10003704,197.13,197.1,9.56063076]
[1760337253145,0.10003704,197.13,197.1,10.25063076]
[1760337253348,0.10003704,197.13,197.11,9.56063076]
[1760337253540,0.10003704,197.13,197.07,15.9507931]
[1760337253746,0.10003704,197.13,197.1,9.56063076]
[1760337254054,0.10003704,197.13,197.12,9.56063076]
[1760337254429,0.10003704,197.13,197.12,30.69773673]
[1760337254642,0.10003704,197.13,197.12,10.26063076]
[1760337254834,0.10003704,197.13,197.12,11.57647521]
[1760337255054,0.10003704,197.13,197.12,16.64952715]
[1760337255246,0.10003704,197.13,197.12,9.56063076]
[1760337255552,0.10003704,197.13,197.12,10.26063076]
[1760337255754,0.10506185,197.14,197.12,19.82126152]
[1760337255945,0.10506185,197.14,197.13,41.93710597]
[1760337257154,0.10506185,197.14,197.13,47.00990057]
[1760337258262,0.10506185,197.14,197.13,25.50990057]
[1760337258462,0.10506185,197.14,197.13,26.20990057]
[1760337261871,0.10506185,197.14,197.13,14.63342536]
[1760337262543,0.10506185,197.14,197.13,26.20990057]
[1760337263574,0.10506185,197.14,197.13,9.56063076]
[1760337263942,0.77506185,197.14,197.13,9.56063076]
[1760337264144,0.77506185,197.14,197.08,5.07408159]
[1760337264346,0.67,197.13,197.1,9.56063076]
[1760337264544,0.67,197.12,197.11,9.56063076]
[1760337264964,0.10506185,197.14,197.11,9.56063076]
[1760337265152,0.10506185,197.14,197.13,9.56063076]
[1760337265358,0.77506185,197.14,197.12,9.56063076]
[1760337265570,0.67,197.13,197.08,5.07406153]
[1760337266745,0.10506185,197.14,197.08,5.07406153]
[1760337266946,0.77506185,197.14,197.08,5.07406153]
[1760337267566,0.77506185,197.14,197.07,15.95081427]
[1760337267969,0.67,197.13,197.08,6.43081526]
[1760337268145,0.67,197.12,197.06,0.2]
[1760337268345,0.67,197.12,197.08,6.43081526]
[1760337268565,0.67,197.11,197.06,0.2]
[1760337268865,0.67,197.1,197.06,6.63081526]
[1760337269067,5.17770214,197.14,197.08,6.43081526]
[1760337269369,0.67,197.12,197.09,6.43081526]
[1760337269843,0.10506185,197.14,197.11,6.43081526]
[1760337270043,0.77506185,197.14,197.12,6.43081526]
[1760337270252,0.77506185,197.14,197.07,5.07433906]
[1760337270253,0.67,197.13,197.07,5.07433906]
[1760337270468,0.67,197.13,197.08,6.43081526]
[1760337270645,0.67,197.12,197.08,6.43081526]
[1760337270848,0.67,197.11,197.06,0.2]
[1760337271048,0.09553275,197.09,197.06,0.2]
[1760337271565,0.7,197.08,197.06,0.2]
[1760337271751,0.09553275,197.09,197.06,6.63081526]
[1760337271960,0.7,197.08,197.06,0.2]
[1760337272161,0.7,197.08,197.06,6.63081526]
[1760337272481,0.7,197.08,197.06,0.2]
[1760337272649,0.7,197.07,197.06,0.2]
[1760337273158,0.7,197.07,197.04,0.2]
[1760337273159,7.13081526,197.07,197.04,0.2]
[1760337273373,6.43081526,197.06,197.04,0.2]
[1760337273574,11.50566935,197.05,197.04,0.2]
[1760337273871,12.20566935,197.05,197.04,0.2]
[1760337276748,5.77485409,197.05,197.04,0.2]
[1760337276956,18.63648461,197.05,197.04,0.2]
[1760337277154,31.32361985,197.05,197.02,14.77386847]
[1760337277470,6.43081526,197.03,197.02,14.77386847]
[1760337277668,11.50618449,197.03,197.02,14.77386847]
[1760337277864,12.20618449,197.03,197.02,14.77386847]
[1760337278479,35.77108278,197.03,196.87,0.2]
[1760337278660,6.43081526,196.95,196.89,6.43081526]
[1760337278853,7.13081526,196.95,196.89,6.43081526]
[1760337279054,0.7,196.97,196.88,0.66]
[1760337279361,0.7,196.97,196.92,6.43081526]
[1760337279558,12.68842308,197.03,196.88,20.8]
[1760337279866,0.7,197.0,196.94,6.43081526]
[1760337280070,6.43081526,197.03,196.97,6.43081526]
[1760337280487,0.7,197.04,196.97,6.43081526]
[1760337280687,7.13081526,197.04,196.97,6.43081526]
[1760337281277,0.7,197.04,196.97,6.43081526]
[1760337281451,7.13081526,197.04,196.97,6.43081526]
[1760337281650,5.77535073,197.04,196.97,6.43081526]
[1760337281874,6.43081526,197.03,196.97,6.43081526]
[1760337282085,6.43081526,197.03,196.95,0.66]
[1760337282270,0.7,197.02,196.97,6.43081526]
[1760337282773,0.7,197.02,196.98,6.43081526]
[1760337283579,0.69,197.01,196.98,6.43081526]
[1760337283776,0.69,197.0,196.97,6.43081526]
[1760337284090,0.69,197.02,196.97,6.43081526]
[1760337284379,0.69,197.01,196.97,6.43081526]
[1760337285173,0.69,197.05,197.0,6.43081526]
[1760337285366,0.69,197.05,197.02,6.43081526]
[1760337285676,0.69,197.04,197.0,6.43081526]
[1760337287866,7.12081526,197.08,197.0,5.76612911]
[1760337288066,0.69,197.08,197.02,6.43081526]
[1760337288387,0.69,197.08,197.03,6.43081526]
[1760337288557,6.52634801,197.09,197.0,0.69]
[1760337288765,6.43081526,197.03,196.96,0.69]
[1760337288976,6.43081526,197.02,196.96,7.12081526]
[1760337289483,6.43081526,197.02,196.94,5.07761856]
[1760337289664,0.71,197.01,196.96,6.43081526]
[1760337289859,0.71,197.0,196.95,6.43081526]
[1760337290056,6.43081526,197.04,196.98,6.43081526]
[1760337290256,11.50602639,197.04,196.98,6.43081526]
[1760337290681,12.21602639,197.04,196.96,0.66]
[1760337290979,0.09358939,196.99,196.96,0.66]
[1760337291160,0.80358939,196.99,196.94,6.43081526]
[1760337291569,0.09358939,196.99,196.97,6.43081526]
[1760337291767,7.14081526,196.98,196.87,0.86]
[1760337291973,0.71,196.98,196.88,6.43081526]
[1760337292172,6.43081526,196.94,196.88,6.43081526]
[1760337292387,6.43081526,196.92,196.87,0.2]
[1760337292569,6.43081526,196.93,196.87,6.63081526]
[1760337292779,7.14081526,196.94,196.88,6.43081526]
[1760337292962,0.71,196.94,196.89,6.43081526]
[1760337293165,0.71,196.97,196.9,6.43081526]
[1760337293475,11.50798829,196.96,196.87,0.86]
[1760337293680,7.14081526,196.96,196.9,6.43081526]
[1760337294273,0.71,196.96,196.9,6.43081526]
[1760337294472,7.14081526,196.96,196.9,6.43081526]
[1760337295500,7.14081526,196.96,196.88,6.43081526]
[1760337295501,7.14081526,196.95,196.88,6.43081526]
[1760337295694,6.43081526,196.93,196.87,6.63081526]
[1760337295886,6.43081526,196.91,196.87,0.2]
[1760337296188,0.71,196.9,196.87,0.2]
[1760337296768,7.14081526,196.94,196.88,6.43081526]
[1760337297063,33.58489173,196.99,196.91,6.43081526]
[1760337297064,6.43081526,196.97,196.91,6.43081526]
[1760337297283,5.78717303,196.96,196.9,6.43081526]
[1760337297668,5.78717303,196.96,196.87,0.86]
[1760337297883,0.71,196.96,196.91,6.43081526]
[1760337298085,0.80358939,196.99,196.93,6.43081526]
[1760337298284,0.09358939,196.99,196.95,6.43081526]
[1760337298591,0.71,196.98,196.95,6.43081526]
[1760337298789,0.09358939,196.99,196.94,6.43081526]
[1760337298995,0.09358939,196.99,196.92,0.66]
[1760337298996,0.09358939,196.99,196.95,7.09081526]
[1760337299289,0.09358939,196.99,196.96,6.43081526]
[1760337299492,0.09358939,196.99,196.96,7.09081526]
[1760337299878,0.09358939,196.99,196.96,6.43081526]
[1760337300193,0.71,196.98,196.94,6.43081526]
[1760337300399,0.09358939,196.99,196.95,6.43081526]
[1760337300600,0.09358939,196.99,196.93,6.43081526]
[1760337300777,6.43081526,196.96,196.9,6.43081526]
[1760337300976,0.71,196.95,196.87,0.86]
[1760337301285,5.07768863,196.94,196.89,6.43081526]
[1760337301786,0.71,196.93,196.88,6.43081526]
[1760337301989,5.07768863,196.94,196.88,7.09081526]
[1760337302191,11.50850389,196.94,196.88,0.66]
[1760337302371,0.71,196.98,196.89,6.43081526]
[1760337302570,6.43081526,196.96,196.89,6.43081526]
[1760337302792,0.71,196.97,196.89,6.43081526]
[1760337303098,6.43081526,196.95,196.88,7.09081526]
[1760337303298,7.14081526,196.96,196.89,6.43081526]
[1760337303675,7.14081526,196.96,196.9,6.43081526]
[1760337304319,7.14081526,196.96,196.9,86.83081526]
[1760337304602,0.09358939,196.99,196.94,6.43081526]
[1760337304895,6.52440465,196.99,196.93,6.43081526]
[1760337305280,6.43081526,196.98,196.91,7.09081526]
[1760337305495,6.43081526,196.98,196.91,0.66]
[1760337305688,6.43081526,196.95,196.87,0.86]
[1760337305898,6.43081526,196.93,196.87,7.29081526]
[1760337306283,0.71,196.95,196.87,7.29081526]
[1760337306490,6.43081526,196.93,196.87,7.29081526]
[1760337307397,6.43081526,196.94,196.87,7.29081526]
[1760337307602,11.50873444,196.94,196.87,0.2]
[1760337307808,6.43081526,196.88,196.87,0.2]
[1760337308181,7.14081526,196.88,196.87,0.2]
[1760337309016,0.71,196.88,196.87,0.2]
[1760337309302,7.14081526,196.88,196.87,0.2]
[1760337309508,0.71,196.92,196.87,0.2]
[1760337309713,6.43081526,196.9,196.87,0.2]
[1760337309911,0.71,196.89,196.87,0.2]
[1760337310107,7.14081526,196.89,196.87,0.2]
[1760337310280,6.43081526,196.89,196.87,0.2]
[1760337310481,7.14081526,196.89,196.87,0.2]
[1760337311112,7.24040576,196.88,196.86,0.2]
[1760337311401,27.23081526,196.87,196.86,0.2]
[1760337311707,25.87949408,196.87,196.86,0.2]
[1760337311911,12.22030934,196.87,196.86,0.2]
[1760337313997,33.02030934,196.87,196.86,0.2]
[1760337315003,26.58949408,196.87,196.86,0.2]
[1760337315188,33.02030934,196.87,196.86,0.2]
[1760337315595,5.07949408,196.87,196.86,0.2]
[1760337316504,0.0995905,196.88,196.86,0.2]
[1760337316806,0.0995905,196.88,196.86,0.88]
[1760337317207,0.0995905,196.88,196.86,6.63081526]
[1760337317409,0.0995905,196.88,196.87,7.11081526]
[1760337318613,0.1065688,196.89,196.87,23.06678455]
[1760337318785,0.1065688,196.89,196.88,7.11081526]
[1760337318989,0.10901552,196.91,196.89,31.67647521]
[1760337319290,0.09667152,196.92,196.91,31.67647521]
[1760337319489,0.09475074,196.95,196.91,44.53810573]
[1760337319714,0.09475074,196.95,196.92,11.55647521]
[1760337320015,0.09475074,196.95,196.92,29.49631007]
[1760337321210,0.09475074,196.95,196.93,10.87647521]
[1760337321418,5.07470797,197.06,196.95,31.67647521]
[1760337321718,5.07470797,197.06,196.95,38.10729047]
[1760337321932,3.36277541,197.08,196.95,38.78729047]
[1760337322123,5.07437969,197.07,196.95,43.86472129]
[1760337323314,0.71,197.04,196.95,32.35647521]
[1760337323509,0.71,197.02,196.95,20.8]
[1760337323711,0.71,197.02,196.95,6.43081526]
[1760337324117,5.0758904,197.01,196.95,6.43081526]
[1760337325535,0.71,197.02,196.95,6.43081526]
[1760337326118,5.7858747,197.02,196.95,6.43081526]
[1760337326325,0.71,196.99,196.91,31.67647521]
[1760337326528,12.68737655,197.05,196.95,6.43081526]
[1760337326730,0.71,197.02,196.95,6.43081526]
[1760337327624,5.78574303,197.02,196.95,9.59295105]
[1760337328209,5.78574303,197.02,196.95,20.8]
[1760337328427,0.71,197.0,196.95,20.8]
[1760337329025,0.80332323,196.96,196.87,12.69838665]
[1760337329224,0.80332323,196.96,196.94,9.59295105]
[1760337329225,0.09332323,196.96,196.94,9.59295105]
[1760337329632,0.09332323,196.96,196.92,20.8]
[1760337329831,0.09332323,196.96,196.93,9.59295105]
[1760337330022,0.09332323,196.96,196.94,9.59295105]
[1760337330331,0.09332323,196.96,196.95,9.59295105]
[1760337330705,0.09332323,196.96,196.95,10.27295105]
[1760337330908,0.20148974,196.96,196.95,21.14942626]
[1760337331431,0.20148974,196.96,196.95,26.22685708]
[1760337331931,0.10816651,196.96,196.95,26.22685708]
[1760337335522,0.10647464,196.98,196.96,10.87647521]
[1760337335725,0.09214958,196.99,196.97,30.06237731]
[1760337336040,0.09214958,196.99,196.98,30.06237731]
[1760337336230,0.09214958,196.99,196.98,30.74237731]
[1760337336528,0.09214958,196.99,196.98,11.55647521]
[1760337336729,0.09214958,196.99,196.98,21.14942626]
[1760337337127,0.09214958,196.99,196.98,26.22608378]
[1760337338718,0.09214958,196.99,196.98,35.81903483]
[1760337338936,0.09573685,197.0,196.99,10.87647521]
[1760337339138,0.09573685,197.0,196.99,21.14942626]
[1760337340630,0.09573685,197.0,196.99,26.22582607]
[1760337340827,0.09573685,197.0,196.99,25.54582607]
[1760337341035,0.09573685,197.0,196.99,31.67647521]
[1760337341225,0.09573685,197.0,196.99,30.39295105]
[1760337342426,0.80573685,197.0,196.99,30.39295105]
[1760337342635,0.80573685,197.0,196.95,15.95366838]
[1760337342952,0.09573685,197.0,196.95,25.87719317]
[1760337343144,0.09573685,197.0,196.99,9.59295105]
[1760337343944,0.76573685,197.0,196.99,9.59295105]
[1760337344247,0.76573685,197.0,196.93,5.75780009]
[1760337344448,0.76573685,197.0,196.92,10.87647521]
[1760337344449,0.67,196.99,196.94,20.8]
[1760337344745,0.7,196.98,196.94,9.59295105]
[1760337344959,0.7,196.97,196.95,9.59295105]
[1760337345123,0.7,196.97,196.91,20.8]
[1760337345322,0.7,196.96,196.88,5.07923608]
[1760337345529,0.7,196.95,196.9,9.59295105]
[1760337345836,0.7,196.94,196.9,9.59295105]
[1760337346031,9.59295105,196.97,196.9,9.59295105]
[1760337346032,0.7,196.93,196.9,9.59295105]
[1760337346253,0.7,196.92,196.9,9.59295105]
[1760337346562,0.7,196.91,196.89,9.59295105]
[1760337346754,0.7,196.91,196.9,9.59295105]
[1760337347044,5.07712893,196.97,196.9,9.59295105]
[1760337347225,0.7,196.96,196.92,9.59295105]
[1760337347422,0.7,196.95,196.92,9.59295105]
[1760337347622,0.7,196.94,196.92,9.59295105]
[1760337347839,0.7,196.93,196.92,9.59295105]
[1760337348437,0.7,196.93,196.9,9.59295105]
[1760337348636,0.7,196.92,196.86,0.2]
[1760337348850,0.7,196.92,196.87,9.59295105]
[1760337349161,9.59295105,196.93,196.86,9.79295105]
[1760337349162,0.7,196.91,196.86,9.79295105]
[1760337349338,10.29295105,196.9,196.86,0.2]
[1760337349547,9.59295105,196.89,196.86,0.2]
[1760337349851,0.7,196.9,196.86,0.2]
[1760337350059,0.7,196.89,196.86,0.2]
[1760337350255,17.77100787,196.95,196.86,0.2]
[1760337350256,0.7,196.88,196.86,0.2]
[1760337350430,0.7,196.91,196.87,9.59295105]
[1760337350637,0.7,196.9,196.86,0.2]
[1760337350847,0.2,196.89,196.88,9.59295105]
[1760337351050,0.29323899,196.89,196.88,9.59295105]
[1760337351246,0.29323899,196.89,196.86,9.79295105]
[1760337351436,0.09323899,196.89,196.86,9.79295105]
[1760337351753,0.09323899,196.89,196.86,0.2]
[1760337351952,0.09323899,196.89,196.86,9.79295105]
[1760337352133,0.09323899,196.89,196.86,0.2]
[1760337352328,5.17225419,196.89,196.86,0.2]
[1760337352757,0.09323899,196.89,196.86,0.2]
[1760337352937,0.79323899,196.89,196.86,0.2]
[1760337353342,0.7,196.88,196.86,0.2]
[1760337353864,0.7,196.87,196.86,0.2]
[1760337354062,10.29295105,196.87,196.86,0.2]
[1760337354363,15.37244513,196.87,196.86,0.2]
[1760337355136,38.24765554,196.87,196.84,1e-08]
[1760337355362,41.26942626,196.85,196.84,1e-08]
[1760337356062,31.67647521,196.81,196.74,0.2]
[1760337356249,9.59295105,196.75,196.74,0.2]
[1760337356447,14.67554317,196.75,196.74,0.2]
[1760337356641,10.87647521,196.82,196.74,0.2]
[1760337356957,9.59295105,196.8,196.74,0.2]
[1760337357148,9.59295105,196.79,196.74,0.2]
[1760337357335,9.59295105,196.78,196.74,0.2]
[1760337357737,9.59295105,196.79,196.74,0.2]
[1760337357945,9.59295105,196.81,196.74,9.79295105]
[1760337358140,17.78185716,196.83,196.75,9.59295105]
[1760337358340,5.08054131,196.83,196.76,9.59295105]
[1760337358547,5.08054131,196.83,196.77,9.59295105]
[1760337359449,9.59295105,196.81,196.74,0.2]
[1760337359662,27.37480821,196.83,196.76,9.59295105]
[1760337359870,14.67349236,196.83,196.76,9.59295105]
[1760337360071,5.08054131,196.83,196.78,9.59295105]
[1760337360461,9.59295105,196.83,196.76,9.59295105]
[1760337360767,9.59295105,196.82,196.75,9.59295105]
[1760337360969,9.59295105,196.8,196.74,0.2]
[1760337361172,10.87647521,196.83,196.74,0.2]
[1760337361173,9.59295105,196.78,196.74,0.2]
[1760337361562,9.59295105,196.77,196.74,0.2]
[1760337361780,9.59295105,196.78,196.74,0.2]
[1760337362269,9.59295105,196.8,196.74,0.2]
[1760337362670,5.08155902,196.79,196.74,0.2]
[1760337362882,10.87647521,196.88,196.78,9.59295105]
[1760337363121,9.59295105,196.87,196.8,9.59295105]
[1760337363446,9.59295105,196.87,196.74,5.28274023]
[1760337363746,17.77778925,196.88,196.8,9.59295105]
[1760337363968,27.3707403,196.88,196.81,9.59295105]
[1760337364171,9.59295105,196.87,196.8,9.59295105]
[1760337364758,5.0797521,196.86,196.8,9.59295105]
[1760337365268,5.0797521,196.86,196.81,9.59295105]
[1760337366062,27.37118033,196.87,196.8,9.59295105]
[1760337366889,2.65568443,196.86,196.81,9.59295105]
[1760337367276,5.08001016,196.85,196.8,9.59295105]
[1760337367980,2.65568443,196.86,196.83,9.59295105]
[1760337368181,2.65568443,196.86,196.85,9.59295105]
[1760337368867,2.65568443,196.86,196.84,9.59295105]
[1760337369577,7.73544102,196.86,196.84,9.59295105]
[1760337369754,7.73544102,196.86,196.76,25.88211445]
[1760337370077,7.73544102,196.86,196.8,9.59295105]
[1760337370275,2.65568443,196.86,196.83,9.59295105]
[1760337370470,2.65568443,196.86,196.84,9.59295105]
[1760337370653,2.65568443,196.86,196.83,9.59295105]
[1760337371063,0.09706576,196.85,196.83,9.59295105]